lending/lending_fUSD_20250130
["ID","MTS","AMOUNT","RATE_DAILY","PERIOD"]
[350934823,1738217441162,-907.0,0.00020956,2]
[350934824,1738217441171,-150.0,0.00020956,2]
[350934825,1738217441181,-1834.75,0.0002098,2]
[350934826,1738217441191,-360.27730801,0.00021,21]
[350934827,1738217441203,-639.72269199,0.00021,21]
[350934828,1738217441212,-1485.12194684,0.00021003,2]
[350934829,1738217441223,-150.0,0.00021029,2]
[350934830,1738217441233,-412.17133369,0.0002107,2]
[350934831,1738217441245,-363.86420002,0.0002107,2]
[350934832,1738217441257,-966.96446629,0.0002107,2]
[350934833,1738217441267,-66.83052674,0.00021091,7]
[350934845,1738217443726,-691.97947326,0.00021091,7]
[350934846,1738217443737,-430.87570697,0.0002121,2]
[350934847,1738217443747,-376.54580985,0.00021269,2]
[350934848,1738217443757,-376.54580978,0.00021284,2]
[350934849,1738217443767,-419.50255344,0.00021285,2]
[350934855,1738217446471,-408.35146807,0.00021285,2]
[350934858,1738217446494,-915.14597849,0.00021285,2]
[350934860,1738217446505,-376.54580978,0.00021298,2]
[350934861,1738217446515,-1762.40238678,0.000213,2]
[350934862,1738217446526,-1004.0,0.000213,2]
[350934863,1738217446535,-150.83,0.00021309,2]
[350934864,1738217446545,-695.80456582,0.00021312,2]
[350934865,1738217446555,-376.54580978,0.00021313,2]
[350934866,1738217446565,-376.54580978,0.00021327,2]
[350934867,1738217446574,-500.0,0.00021328,2]
[350934868,1738217446585,-376.54580978,0.00021342,2]
[350934869,1738217446595,-600.0,0.00021356,2]
[350934870,1738217446604,-376.54580978,0.00021356,2]
[350934871,1738217446615,-300.0,0.00021369,4]
[350934872,1738217446625,-300.0,0.00021369,4]
[350934873,1738217446634,-344.62670093,0.00021369,4]
[350934874,1738217446644,-500.0,0.00021369,4]
[350934875,1738217446654,-500.0,0.00021369,4]
[350934876,1738217446664,-504.07871309,0.00021369,4]
[350934877,1738217446673,-500.0,0.00021369,4]
[350934878,1738217446683,-500.0,0.00021369,4]
[350934879,1738217446692,-520.45562684,0.00021369,4]
[350934880,1738217446702,-500.0,0.00021369,4]
[350934881,1738217446711,-316.88942822,0.00021369,4]
[350934882,1738217446722,-522.28444252,0.00021369,4]
[350934883,1738217446731,-527.33902836,0.00021369,4]
[350934884,1738217446741,-506.93990595,0.00021369,4]
[350934885,1738217446751,-518.63969865,0.00021369,4]
[350934886,1738217446760,-506.40904616,0.00021369,4]
[350934887,1738217446770,-500.0,0.00021369,4]
[350934888,1738217446780,-376.03850531,0.00021369,4]
[350934889,1738217446790,-500.0,0.00021369,4]
[350934890,1738217446801,-500.0,0.00021369,4]
[350934891,1738217446811,-508.055566,0.00021369,4]
[350934892,1738217446820,-500.0,0.00021369,4]
[350934893,1738217446830,-506.57522822,0.00021369,4]
[350934894,1738217446840,-500.0,0.00021369,4]
[350934895,1738217446849,-500.0,0.00021369,4]
[350934896,1738217446859,-500.0,0.00021369,4]
[350934897,1738217446869,-500.0,0.00021369,4]
[350934899,1738217446880,-517.92982399,0.00021369,4]
[350934900,1738217446889,-514.77810705,0.00021369,4]
[350934901,1738217446899,-500.0,0.00021369,4]
[350934902,1738217446909,-500.0,0.00021369,4]
[350934903,1738217446919,-504.04662689,0.00021369,4]
[350934904,1738217446929,-500.0,0.00021369,4]
[350934905,1738217446939,-500.0,0.00021369,4]
[350934906,1738217446949,-520.28716618,0.00021369,4]
[350934907,1738217446958,-549.25818491,0.00021369,4]
[350934908,1738217446968,-500.0,0.00021369,4]
[350934909,1738217446977,-501.62837395,0.00021369,4]
[350934910,1738217446987,-500.0,0.00021369,4]
[350934911,1738217446997,-556.17632606,0.00021369,4]
[350934912,1738217447007,-507.28500055,0.00021369,4]
[350934913,1738217447016,-507.32610276,0.00021369,4]
[350934914,1738217447027,-505.01024317,0.00021369,4]
[350934915,1738217447039,-500.0,0.00021369,2]
[350934916,1738217447048,-200.0,0.00021369,4]
[350934917,1738217447059,-555.97268754,0.00021369,4]
[350934918,1738217447070,-500.0,0.00021369,4]
[350934919,1738217447083,-500.0,0.00021369,4]
[350934920,1738217447092,-154.45083035,0.00021369,4]
[350934921,1738217447101,-500.0,0.00021369,4]
[350934922,1738217447111,-500.0,0.00021369,4]
[350934923,1738217447122,-500.0,0.00021369,4]
[350934924,1738217447132,-500.0,0.00021369,4]
[350934925,1738217447141,-515.91111919,0.00021369,4]
[350934926,1738217447153,-500.0,0.00021369,4]
[350934927,1738217447162,-500.0,0.00021369,4]
[350934928,1738217447172,-500.0,0.00021369,4]
[350934929,1738217447181,-500.0,0.00021369,4]
[350934930,1738217447190,-500.0,0.00021369,4]
[350934931,1738217447201,-179.23240698,0.00021369,4]
[350934932,1738217447211,-500.0,0.00021369,4]
[350934933,1738217447221,-500.0,0.00021369,4]
[350934934,1738217447231,-500.0,0.00021369,4]
[350934935,1738217447244,-306.59,0.00021369,4]
[350934936,1738217447264,-500.0,0.00021369,4]
[350934937,1738217447274,-500.0,0.00021369,4]
[350934938,1738217447284,-500.0,0.00021369,4]
[350934939,1738217447294,-500.0,0.00021369,4]
[350934940,1738217447304,-500.0,0.00021369,4]
[350934941,1738217447316,-500.0,0.00021369,4]
[350934942,1738217447326,-500.0,0.00021369,4]
[350934943,1738217447336,-500.0,0.00021369,4]
[350934944,1738217447346,-500.0,0.00021369,4]
[350934945,1738217447355,-500.0,0.00021369,4]
[350934946,1738217447366,-500.0,0.00021369,4]
[350934947,1738217447376,-500.0,0.00021369,4]
[350934948,1738217447386,-517.04,0.00021369,4]
[350934949,1738217447395,-602.84637602,0.00021369,4]
[350934950,1738217447405,-376.54580978,0.00021371,2]
[350934951,1738217447415,-376.54580978,0.00021385,2]
[350934952,1738217447426,-37945.562444,0.000214,2]
[350934953,1738217447436,-168.9701072,0.000214,2]
[350934954,1738217447445,-646.25080629,0.000214,2]
[350934955,1738217447456,-646.25080622,0.000214,2]
[350934956,1738217447466,-646.25080622,0.000214,2]
[350934957,1738217447475,-646.25080622,0.000214,2]
[350934958,1738217447485,-646.25080622,0.000214,2]
[350934959,1738217447494,-646.25080622,0.000214,2]
[350934960,1738217447503,-646.25080622,0.000214,2]
[350934961,1738217447512,-646.25080622,0.000214,2]
[350934962,1738217447521,-646.25080622,0.000214,2]
[350934963,1738217447531,-646.25080622,0.000214,2]
[350934964,1738217447541,-646.25080622,0.000214,2]
[350934965,1738217447551,-646.25080622,0.000214,2]
[350934966,1738217447561,-646.25080622,0.000214,2]
[350934967,1738217447570,-646.25080622,0.000214,2]
[350934968,1738217447580,-646.25080622,0.000214,2]
[350934969,1738217447589,-646.25080622,0.000214,2]
[350934970,1738217447599,-646.25080622,0.000214,2]
[350934971,1738217447608,-646.25080622,0.000214,2]
[350934972,1738217447618,-646.25080622,0.000214,2]
[350934973,1738217447627,-646.25080622,0.000214,2]
[350934974,1738217447637,-376.54580978,0.000214,2]
[350934975,1738217447646,-410.19,0.00021408,2]
[350934976,1738217447656,-168.97010718,0.00021466,2]
[350934977,1738217447665,-150.0,0.00021479,4]
[350934978,1738217447675,-150.0,0.00021479,4]
[350934979,1738217447685,-178.16255011,0.0002149,2]
[350934980,1738217447694,-561.97120315,0.00021498,4]
[350934981,1738217447704,-500.0,0.00021498,4]
[350934982,1738217447715,-500.0,0.00021498,4]
[350934983,1738217447725,-500.0,0.00021498,4]
[350934984,1738217447735,-500.0,0.00021498,4]
[350934985,1738217447745,-500.0,0.00021498,4]
[350934986,1738217447755,-500.0,0.00021498,4]
[350934987,1738217447764,-500.0,0.00021498,4]
[350934988,1738217447774,-578.65,0.00021498,4]
[350934989,1738217447783,-500.0,0.00021498,4]
[350934990,1738217447793,-500.0,0.00021498,4]
[350934991,1738217447803,-500.0,0.00021498,4]
[350934992,1738217447812,-500.0,0.00021498,4]
[350934993,1738217447822,-500.0,0.00021498,4]
[350934994,1738217447831,-500.0,0.00021498,4]
[350934995,1738217447841,-500.0,0.00021498,4]
[350934996,1738217447851,-500.0,0.00021498,4]
[350934997,1738217447860,-500.0,0.00021498,4]
[350934998,1738217447871,-500.0,0.00021498,4]
[350934999,1738217447881,-500.0,0.00021498,4]
[350935000,1738217447890,-500.0,0.00021498,4]
[350935001,1738217447900,-500.0,0.00021498,4]
[350935002,1738217447910,-500.0,0.00021498,4]
[350935003,1738217447919,-500.0,0.00021498,4]
[350935004,1738217447928,-500.0,0.00021498,4]
[350935005,1738217447938,-500.0,0.00021499,4]
[350935006,1738217447948,-506.27234472,0.00021499,4]
[350935007,1738217447957,-500.0,0.00021499,4]
[350935008,1738217447968,-500.0,0.00021499,4]
[350935009,1738217447978,-361.58591054,0.00021499,4]
[350935010,1738217447987,-500.0,0.00021499,4]
[350935011,1738217447997,-506.29383592,0.00021499,4]
[350935012,1738217448007,-500.0,0.00021499,4]
[350935013,1738217448176,-500.0,0.00021499,4]
[350935014,1738217448187,-280.22024132,0.00021499,4]
[350935015,1738217448197,-500.0,0.00021499,4]
[350935016,1738217448207,-500.0,0.00021499,4]
[350935017,1738217448216,-500.0,0.00021499,4]
[350935018,1738217448226,-522.6586676,0.00021499,4]
[350935019,1738217448236,-500.0,0.00021499,4]
[350935020,1738217448246,-500.0,0.00021499,4]
[350935021,1738217448256,-500.0,0.00021499,4]
[350935022,1738217448266,-500.0,0.00021499,4]
[350935023,1738217448275,-500.0,0.00021499,4]
[350935024,1738217448285,-502.940416,0.00021499,4]
[350935025,1738217448295,-581.06180212,0.00021499,4]
[350935026,1738217448304,-500.0,0.00021499,4]
[350935027,1738217448314,-503.92592086,0.00021499,4]
[350935028,1738217448324,-500.0,0.00021499,4]
[350935029,1738217448333,-505.9300016,0.00021499,4]
[350935030,1738217448343,-500.0,0.00021499,4]
[350935031,1738217448353,-505.7962419,0.00021499,4]
[350935032,1738217448363,-166.9511439,0.00021499,4]
[350935033,1738217448373,-500.0,0.00021499,4]
[350935034,1738217448383,-505.59065078,0.00021499,4]
[350935035,1738217448392,-500.0,0.00021499,2]
[350935036,1738217448401,-502.28329622,0.00021499,2]
[350935037,1738217448411,-200.0,0.00021499,4]
[350935038,1738217448421,-272.3,0.00021499,4]
[350935039,1738217448431,-500.0,0.00021499,4]
[350935040,1738217448440,-500.0,0.00021499,4]
[350935041,1738217448449,-215.44,0.00021499,4]
[350935042,1738217448459,-999.0,0.00021499,2]
[350935043,1738217448468,-500.0,0.00021499,4]
[350935044,1738217448478,-500.0,0.00021499,4]
[350935045,1738217448487,-619.94,0.00021499,4]
[350935046,1738217448496,-500.0,0.00021499,4]
[350935047,1738217448505,-393.5,0.00021499,4]
[350935048,1738217448514,-500.0,0.00021499,4]
[350935049,1738217448524,-500.0,0.00021499,4]
[350935050,1738217448533,-179.07327949,0.00021499,4]
[350935051,1738217448542,-500.0,0.00021499,4]
[350935052,1738217448551,-500.0,0.00021499,4]
[350935053,1738217448561,-500.0,0.00021499,4]
[350935054,1738217448570,-500.0,0.00021499,4]
[350935055,1738217448579,-242.85,0.00021499,4]
[350935056,1738217448589,-500.0,0.00021499,4]
[350935057,1738217448598,-500.0,0.00021499,4]
[350935058,1738217448608,-500.0,0.00021499,4]
[350935059,1738217448618,-500.0,0.00021499,4]
[350935060,1738217448627,-500.0,0.00021499,4]
[350935061,1738217448638,-500.0,0.00021499,4]
[350935062,1738217448647,-500.0,0.00021499,4]
[350935063,1738217448658,-500.0,0.00021499,4]
[350935064,1738217448667,-500.0,0.00021499,4]
[350935065,1738217448677,-303.84,0.00021499,4]
[350935066,1738217448686,-500.0,0.00021499,4]
[350935067,1738217448696,-500.0,0.00021499,4]
[350935068,1738217448706,-500.0,0.00021499,4]
[350935069,1738217448716,-500.0,0.00021499,4]
[350935070,1738217448726,-500.0,0.00021499,4]
[350935071,1738217448736,-500.0,0.00021499,4]
[350935072,1738217448745,-500.0,0.00021499,4]
[350935073,1738217448755,-500.0,0.00021499,4]
[350935074,1738217448765,-500.0,0.00021499,4]
[350935075,1738217448775,-500.0,0.00021499,4]
[350935076,1738217448785,-500.0,0.00021499,4]
[350935077,1738217448794,-500.0,0.00021499,4]
[350935078,1738217448804,-500.0,0.00021499,4]
[350935079,1738217448814,-500.0,0.00021499,4]
[350935080,1738217448823,-467.33,0.00021499,4]
[350935081,1738217448833,-500.0,0.00021499,4]
[350935082,1738217448842,-500.0,0.00021499,4]
[350935083,1738217448852,-446.36,0.00021499,4]
[350935084,1738217448862,-500.0,0.00021499,4]
[350935085,1738217448871,-500.0,0.00021499,4]
[350935086,1738217448881,-500.0,0.00021499,4]
[350935087,1738217448890,-500.0,0.00021499,4]
[350935088,1738217448900,-500.0,0.00021499,4]
[350935089,1738217448910,-500.0,0.00021499,4]
[350935090,1738217448920,-500.0,0.00021499,4]
[350935091,1738217448929,-500.0,0.00021499,4]
[350935092,1738217448950,-500.0,0.00021499,4]
[350935093,1738217448962,-500.0,0.00021499,4]
[350935094,1738217448973,-500.0,0.00021499,4]
[350935095,1738217448983,-500.0,0.00021499,4]
[350935096,1738217448994,-500.0,0.00021499,4]
[350935097,1738217449004,-500.0,0.00021499,4]
[350935098,1738217449014,-500.0,0.00021499,4]
[350935099,1738217449025,-500.0,0.00021499,4]
[350935100,1738217449035,-500.0,0.00021499,4]
[350935101,1738217449046,-391.93,0.00021499,4]
[350935102,1738217449056,-500.0,0.00021499,4]
[350935103,1738217449067,-500.0,0.00021499,4]
[350935104,1738217449081,-500.0,0.00021499,4]
[350935105,1738217449091,-500.0,0.00021499,4]
[350935106,1738217449101,-500.0,0.00021499,4]
[350935107,1738217449111,-500.0,0.00021499,4]
[350935108,1738217449122,-500.0,0.00021499,4]
[350935109,1738217449132,-500.0,0.00021499,4]
[350935110,1738217449142,-631.36,0.00021499,4]
[350935111,1738217449152,-500.0,0.00021499,4]
[350935112,1738217449164,-500.0,0.00021499,4]
[350935113,1738217449175,-500.0,0.00021499,4]
[350935114,1738217449185,-500.0,0.00021499,4]
[350935115,1738217449195,-500.0,0.00021499,4]
[350935116,1738217449205,-500.0,0.00021499,4]
[350935117,1738217449215,-500.0,0.00021499,4]
[350935118,1738217449225,-500.0,0.00021499,4]
[350935119,1738217449235,-500.0,0.00021499,4]
[350935120,1738217449252,-500.0,0.00021499,4]
[350935121,1738217449262,-422.94,0.00021499,4]
[350935122,1738217449274,-500.0,0.00021499,4]
[350935123,1738217449284,-500.0,0.00021499,4]
[350935124,1738217449294,-500.0,0.00021499,4]
[350935125,1738217449304,-500.0,0.00021499,4]
[350935126,1738217449314,-500.0,0.00021499,4]
[350935127,1738217449324,-500.0,0.00021499,4]
[350935128,1738217449334,-500.0,0.00021499,4]
[350935129,1738217449345,-500.0,0.00021499,4]
[350935130,1738217449354,-500.0,0.00021499,4]
[350935131,1738217449365,-500.0,0.00021499,4]
[350935132,1738217449375,-500.0,0.00021499,4]
[350935133,1738217449384,-178.49,0.00021499,4]
[350935134,1738217449394,-500.0,0.00021499,4]
[350935135,1738217449404,-500.0,0.00021499,4]
[350935136,1738217449414,-620.083936,0.00021499,4]
[350935137,1738217449424,-525.4100986,0.00021499,4]
[350935138,1738217449434,-500.0,0.00021499,4]
[350935139,1738217449444,-500.0,0.00021499,4]
[350935140,1738217449454,-500.0,0.00021499,4]
[350935141,1738217449469,-305.64338968,0.00021499,4]
[350935142,1738217449489,-194.35661032,0.00021499,4]
[350935143,1738217449500,-500.0,0.00021499,4]
[350935144,1738217449510,-518.53678812,0.00021499,4]
[350935145,1738217449521,-500.0,0.00021499,4]
[350935146,1738217449531,-500.0,0.00021499,4]
[350935147,1738217449542,-500.0,0.00021499,4]
[350935148,1738217449551,-139.60660156,0.00021499,4]
[350935149,1738217449564,-360.39339844,0.00021499,4]
[350935150,1738217449574,-500.0,0.00021499,4]
[350935151,1738217449584,-500.0,0.00021499,4]
[350935152,1738217449595,-500.0,0.00021499,4]
[350935153,1738217449605,-500.0,0.00021499,4]
[350935154,1738217449615,-500.0,0.00021499,4]
[350935155,1738217449625,-500.0,0.00021499,4]
[350935156,1738217449636,-578.25931639,0.00021499,4]
[350935157,1738217449646,-500.0,0.00021499,4]
[350935158,1738217449656,-500.0,0.00021499,4]
[350935159,1738217449666,-500.0,0.00021499,4]
[350935160,1738217449676,-500.0,0.00021499,4]
[350935161,1738217449686,-500.0,0.00021499,4]
[350935162,1738217449695,-500.0,0.00021499,4]
[350935163,1738217449705,-500.0,0.00021499,4]
[350935164,1738217449715,-500.0,0.00021499,4]
[350935165,1738217449725,-500.0,0.00021499,4]
[350935166,1738217449735,-500.0,0.00021499,4]
[350935167,1738217449745,-535.22861764,0.00021499,4]
[350935168,1738217449755,-500.0,0.00021499,4]
[350935169,1738217449766,-500.0,0.00021499,4]
[350935170,1738217449775,-500.0,0.00021499,4]
[350935171,1738217449785,-500.0,0.00021499,4]
[350935172,1738217449794,-500.0,0.00021499,4]
[350935173,1738217449804,-500.0,0.00021499,4]
[350935174,1738217449814,-500.0,0.00021499,4]
[350935175,1738217449825,-500.0,0.00021499,4]
[350935176,1738217449835,-500.0,0.00021499,4]
[350935177,1738217449844,-500.0,0.00021499,4]
[350935178,1738217449855,-500.0,0.00021499,4]
[350935179,1738217449865,-526.12,0.00021499,4]
[350935180,1738217449875,-578.0,0.000215,2]
[350935181,1738217449885,-296.76530392,0.000215,2]
[350935182,1738217449895,-273924.92013997,0.000215,2]
[350935183,1738217449913,-199542.10753724,0.000215,2]
[350935184,1738217449924,-23305.91736483,0.000215,2]
[350935185,1738217449934,-1000.0,0.000215,2]
[350935186,1738217449943,-141139.11156368,0.000215,5]
[350935187,1738217449955,-3785.15416186,0.000215,5]
[350935190,1738217756241,154.27,0.00010137,2]
[350935191,1738217820525,2000.0,0.00023,120]
[350935200,1738218304950,10000.0,0.00023,120]
[350935201,1738218307881,73698.1275321,0.00012,2]
[350935202,1738218328666,-152.09,0.000215,31]
[350935203,1738218328700,-152.09,0.000215,31]
[350935204,1738218328729,-152.09,0.000215,31]
[350935205,1738218328757,-152.09,0.000215,31]
[350935206,1738218328785,-152.09,0.000215,31]
[350935207,1738218328815,-152.09,0.000215,31]
[350935208,1738218328844,-152.09,0.000215,31]
[350935209,1738218328874,-152.09,0.000215,31]
[350935210,1738218328903,-152.09,0.000215,31]
[350935211,1738218328933,-152.09,0.000215,31]
[350935212,1738218328961,-152.09,0.000215,31]
[350935213,1738218328991,-152.09,0.000215,31]
[350935214,1738218329019,-152.09,0.000215,31]
[350935215,1738218329047,-152.09,0.000215,31]
[350935216,1738218329074,-152.09,0.000215,31]
[350935217,1738218329103,-152.09,0.000215,31]
[350935218,1738218329133,-152.09,0.000215,31]
[350935219,1738218329161,-152.09,0.000215,31]
[350935220,1738218329284,-57262.38,0.00023,30]
[350935233,1738218346066,492.82505844,0.00011973,2]
[350935252,1738218611452,162.0,0.00010137,2]
[350935257,1738218631617,-183.86,0.00013699,2]
[350935258,1738218631628,-150.0,0.00014041,2]
[350935259,1738218631638,-150.0,0.00015068,2]
[350935260,1738218631648,-150.0,0.00015068,2]
[350935262,1738218631658,-500.0,0.00018,4]
[350935264,1738218631668,-700.52,0.00018224,2]
[350935266,1738218631678,-300.0,0.00018999,2]
[350935268,1738218631688,-3787.08031446,0.00019,2]
[350935269,1738218631700,-20297.20994581,0.00019,2]
[350935270,1738218631712,-599.69194116,0.00019,2]
[350935271,1738218631724,-541.52801369,0.00019,2]
[350935272,1738218631736,-722.54233573,0.00019,2]
[350935273,1738218631782,-2721.717,0.00019,2]
[350935274,1738218631937,-1842.82074556,0.00019,2]
[350935275,1738218631949,-3317.7154992,0.00019,2]
[350935276,1738218632017,-466.42930039,0.00019,2]
[350935277,1738218632098,-6822.04953256,0.00019,2]
[350935278,1738218632111,-6002.63522886,0.00019,2]
[350935280,1738218632121,-500.0,0.00019,4]
[350935282,1738218632130,-533.54184247,0.00019,2]
[350935283,1738218632140,-3264.56406904,0.00019,2]
[350935284,1738218632149,-500.0,0.00019425,2]
[350935285,1738218632159,-200.0,0.00019678,2]
[350935286,1738218632169,-200.0,0.00019736,2]
[350935287,1738218632179,-200.0,0.00019741,2]
[350935288,1738218632188,-500.0,0.00019741,2]
[350935289,1738218632197,-309.0,0.00019741,2]
[350935291,1738218632207,-200.0,0.00019798,2]
[350935292,1738218632217,-9445.7141291,0.000198,2]
[350935293,1738218632229,-492.18846894,0.000198,2]
[350935301,1738218637532,-33512.52943501,0.000198,2]
[350935302,1738218637616,-2022.90529037,0.000198,2]
[350935303,1738218637629,-3490.54242994,0.000198,2]
[350935304,1738218637644,-541.42514001,0.000198,2]
[350935305,1738218637657,-1454.24614478,0.000198,2]
[350935306,1738218637669,-2022.26067672,0.000198,2]
[350935307,1738218637684,-18756.88772292,0.000198,2]
[350935308,1738218637696,-1005.88831263,0.000198,2]
[350935309,1738218637763,-693.43710831,0.000198,2]
[350935310,1738218637841,-1109.76612253,0.000198,2]
[350935354,1738218639599,-376.01831051,0.000198,2]
[350935386,1738218639935,-643.84375749,0.000198,2]
[350935388,1738218639948,-598.51453168,0.000198,2]
[350935469,1738218642651,-6230.0,0.000198,2]
[350935470,1738218642860,-7310.92724787,0.000198,2]
[350935480,1738218645628,-183.86,0.00013699,2]
[350935481,1738218645637,-250.36145291,0.000198,2]
[350935482,1738218645712,-385.40501,0.000198,2]
[350935483,1738218645798,-1425.2362751,0.000198,2]
[350935510,1738219595086,153.6,0.00010137,2]
[350935515,1738219837068,-550.0,0.00013,2]
[350935516,1738219837078,-150.0,0.0001325,2]
[350935517,1738219837088,-150.0,0.00013928,2]
[350935518,1738219837098,-278.79741596,0.000142,2]
[350935519,1738219837107,-10475.07471001,0.00014299,2]
[350935520,1738219837117,-300.0,0.00014299,2]
[350935521,1738219837126,-150.0,0.000143,2]
[350935522,1738219837136,-150.0,0.000143,2]
[350935523,1738219837146,-150.0,0.000143,2]
[350935524,1738219837155,-150.0,0.000143,2]
[350935525,1738219837166,-600.0,0.00015,2]
[350935526,1738219837177,-420.0,0.00015661,2]
[350935528,1738219837187,-715.91,0.00015954,2]
[350935529,1738219837197,-153.6,0.00016813,2]
[350935530,1738219837207,-650.0,0.00017,2]
[350935531,1738219837217,-587.0,0.00017152,2]
[350935532,1738219837227,-411.0,0.00018,2]
[350935533,1738219837237,-3976.87,0.00018075,2]
[350935534,1738219837251,-248.26,0.0001821,2]
[350935535,1738219837261,-715.91,0.00018218,2]
[350935536,1738219837271,-931.12,0.00018373,2]
[350935537,1738219837281,-1000.0,0.00018451,2]
[350935538,1738219837291,-823.0,0.00018785,2]
[350935540,1738219837300,-1107.0,0.0001883,2]
[350935541,1738219837310,-250.0,0.0001888,2]
[350935542,1738219837319,-248.26,0.00018884,2]
[350935543,1738219837329,-1500.0,0.00018906,2]
[350935544,1738219837338,-170.5,0.00018925,2]
[350935545,1738219837348,-700.0,0.00019,2]
[350935546,1738219837357,-500.0,0.00019164,2]
[350935547,1738219837367,-150.73,0.00019178,2]
[350935548,1738219837376,-248.26,0.00019558,2]
[350935549,1738219837386,-200.0,0.00019671,2]
[350935550,1738219837396,-152.95006086,0.000197,2]
[350935551,1738219837406,-924.19,0.00019794,2]
[350935552,1738219837416,-471.43,0.00019794,2]
[350935553,1738219837425,-150.0,0.00019798,2]
[350935554,1738219837435,-296.76530391,0.00019799,2]
[350935555,1738219837445,-1028.812,0.00019799,2]
[350935556,1738219837454,-31205.25305415,0.000198,2]
[350935717,1738219839881,-562.31,0.000198,2]
[350935718,1738219840175,-2002.56336011,0.000198,2]
[350935737,1738220790573,2000.0,0.000138,3]
[350935738,1738220860329,-5558.0,0.000156,5]
[350935739,1738220861807,442.0,0.000156,5]
[350935741,1738220879275,167.42,0.00010137,2]
[350935751,1738221032040,-550.0,0.00013,2]
[350935752,1738221032050,-289.13739247,0.000149,2]
[350935753,1738221032060,-500.0,0.00015,2]
[350935754,1738221032070,-500.0,0.00015,2]
[350935755,1738221032080,-600.0,0.00015,2]
[350935756,1738221032090,-7441.73134196,0.00015,2]
[350935757,1738221032156,-3069.15827404,0.00015,2]
[350935758,1738221032166,-400.0,0.000151,2]
[350935759,1738221032176,-730.41,0.00015153,2]
[350935760,1738221032186,-150.0,0.0001529,2]
[350935761,1738221032196,-250.0,0.0001669,2]
[350935762,1738221032205,-167.42,0.00016813,2]
[350935763,1738221032216,-201.98,0.00016859,2]
[350935764,1738221032226,-1127.57,0.00017148,2]
[350935765,1738221032235,-155.0,0.00017291,2]
[350935766,1738221032245,-730.41,0.00017417,2]
[350935767,1738221032256,-300.0,0.00017448,2]
[350935768,1738221032265,-2992.14,0.00017449,2]
[350935769,1738221032276,-200.0,0.00017472,2]
[350935770,1738221032287,-150.0,0.0001749,2]
[350935771,1738221032297,-1000.0,0.00017615,2]
[350935772,1738221032307,-400.0,0.000177,6]
[350935773,1738221032317,-150.0,0.0001775,2]
[350935774,1738221032327,-800.0,0.000178,6]
[350935775,1738221032336,-421.73170192,0.000179,2]
[350935776,1738221032347,-991.88002404,0.000179,6]
[350935777,1738221032359,-308.11997596,0.000179,6]
[350935778,1738221032369,-500.0,0.00017973,2]
[350935779,1738221032379,-784.74970248,0.00017999,2]
[350935780,1738221032391,-214.25029752,0.00017999,2]
[350935781,1738221032401,-296.76530391,0.00017999,2]
[350935782,1738221032411,-2988.35532938,0.00017999,2]
[350935783,1738221032422,-892.0171055,0.00017999,2]
[350935784,1738221032442,-983.76878406,0.00017999,2]